fUST/lending_fUST_20240208
["ID","MTS","AMOUNT","RATE_DAILY","PERIOD"]
[313463641,1707360646881,-19979.95133633,0.00029997,2]
[313463642,1707360646890,-1363.10471591,0.00029997,2]
[313463809,1707361832356,-609.78077647,0.00018468,2]
[313463811,1707361832366,-80.25129671,0.00018469,2]
[313463817,1707361832413,-74.83710368,0.00018469,2]
[313463819,1707361832424,-155.08840039,0.0001847,3]
[313463821,1707361832433,-6479.4056603,0.0001847,2]
[313463823,1707361832445,-4367.6703374,0.0001847,2]
[313463825,1707361832457,-1430.11707303,0.0001847,2]
[313464001,1707361838533,-481.56201325,0.00018468,2]
[313464003,1707361838543,-8681.99393069,0.0001847,2]
[313464005,1707361838552,-9392.97703689,0.00018471,2]
[313464007,1707361838562,-24900.0,0.00018473,2]
[313464009,1707361838572,-1201.92575629,0.0002,2]
[313464011,1707361838581,-168.926651,0.0002031,2]
[313464013,1707361838590,-8410.41,0.0002099,3]
[313464014,1707361838599,-13882.36574231,0.00021,2]
[313464016,1707361838609,-9302.99266813,0.00021,2]
[313464018,1707361838618,-200.0,0.00021222,7]
[313464020,1707361838627,-166.666666,0.00021918,2]
[313464022,1707361838636,-166.666666,0.00022431,2]
[313464024,1707361838645,-210.15507115,0.000229,2]
[313464025,1707361838654,-166.666666,0.00022944,2]
[313464027,1707361838663,-9969.58754808,0.00023,2]
[313464029,1707361838673,-1263.33437611,0.00023,2]
[313464031,1707361838683,-280.0,0.00023344,7]
[313464033,1707361838691,-166.666666,0.00023456,2]
[313464035,1707361838700,-166.666666,0.00023969,2]
[313464036,1707361838709,-166.666666,0.00024482,2]
[313464038,1707361838719,-391.0,0.00025679,7]
[313464040,1707361838728,-4999.40212806,0.00026428,2]
[313464042,1707361838738,-21214.56745102,0.00026428,2]
[313464044,1707361838747,-5000.0,0.00026494,2]
[313464046,1707361838756,-500.0,0.00026497,2]
[313464047,1707361838765,-500.0,0.00026497,2]
[313464049,1707361838774,-154.73770772,0.00026497,2]
[313464051,1707361838783,-500.0,0.00026497,2]
[313464053,1707361838792,-500.0,0.00026497,2]
[313464055,1707361838802,-500.0,0.00026497,2]
[313464056,1707361838810,-500.0,0.00026497,2]
[313464058,1707361838820,-500.0,0.00026497,2]
[313464060,1707361838829,-500.0,0.00026497,2]
[313464061,1707361838838,-500.0,0.00026497,2]
[313464062,1707361838847,-500.0,0.00026497,2]
[313464063,1707361838856,-493.72097149,0.00026497,2]
[313464064,1707361838865,-500.0,0.00026497,2]
[313464065,1707361838874,-500.0,0.00026497,2]
[313464066,1707361838883,-500.0,0.00026497,2]
[313464067,1707361838893,-500.0,0.00026497,2]
[313464068,1707361838902,-500.0,0.00026497,2]
[313464069,1707361838910,-500.0,0.00026497,2]
[313464070,1707361838919,-289.43699886,0.00026497,2]
[313464071,1707361838928,-500.0,0.00026497,2]
[313464072,1707361838937,-500.0,0.00026497,2]
[313464073,1707361838947,-500.0,0.00026497,2]
[313464074,1707361838956,-500.0,0.00026497,2]
[313464075,1707361838965,-500.0,0.00026497,2]
[313464076,1707361838974,-50000.0,0.00026498,2]
[313464077,1707361838983,-93704.96778591,0.00026498,2]
[313464078,1707361838992,-5000.0,0.00026498,2]
[313464079,1707361839004,-5000.0,0.00026506,2]
[313464080,1707361839013,-13505.07128449,0.00026521,2]
[313464081,1707361839022,-11026.69130554,0.000268,2]
[313464082,1707361839031,-1382.75585323,0.00027,2]
[313464083,1707361839041,-2330.41533909,0.00027364,2]
[313464084,1707361839050,-991.3729726,0.00027397,2]
[313464085,1707361839059,-18009.24584317,0.000275,2]
[313464086,1707361839068,-514.08551986,0.000275,2]
[313464087,1707361839079,-600.0,0.000275,2]
[313464088,1707361839088,-4369.78159121,0.00028,2]
[313464089,1707361839097,-1716.51144437,0.00028,2]
[313464090,1707361839106,-1129.85208544,0.00028,20]
[313464091,1707361839116,-46111.02664638,0.00028,2]
[313464092,1707361839125,-156.02364156,0.00028023,2]
[313464093,1707361839134,-200.0,0.00028246,15]
[313464094,1707361839143,-348.0,0.00028246,15]
[313464095,1707361839151,-160.51086893,0.0002828,2]
[313464096,1707361839160,-153.0,0.00028493,2]
[313464097,1707361839170,-153.0,0.00028493,2]
[313464098,1707361839178,-199.9537868,0.00028493,2]
[313464099,1707361839187,-153.0,0.00028493,2]
[313464100,1707361839195,-153.0,0.00028493,2]
[313464101,1707361839204,-199.9537868,0.00028493,2]
[313464102,1707361839213,-153.0,0.00028493,2]
[313464103,1707361839222,-153.0,0.00028493,2]
[313464104,1707361839231,-199.9537868,0.00028493,2]
[313464105,1707361839240,-153.0,0.00028493,2]
[313464106,1707361839249,-199.9537868,0.00028493,2]
[313464107,1707361839258,-153.0,0.00028493,2]
[313464108,1707361839267,-153.0,0.00028493,2]
[313464109,1707361839276,-153.0,0.00028578,2]
[313464110,1707361839285,-153.0,0.00028578,2]
[313464111,1707361839294,-199.9537868,0.00028578,2]
[313464113,1707361839303,-1000.0,0.00028728,2]
[313464114,1707361839312,-1000.0,0.00028787,2]
[313464115,1707361839321,-20174.4026237,0.00028798,2]
[313464117,1707361839331,-454.79243383,0.00028798,2]
[313464118,1707361839340,-51334.35268178,0.000288,2]
[313464119,1707361839349,-1000.0,0.00028815,2]
[313464121,1707361839358,-1000.0,0.00028852,2]
[313464122,1707361839367,-443.13505436,0.00028884,2]
[313464124,1707361839376,-263.92988769,0.00028888,2]
[313464125,1707361839387,-66832.46334846,0.00028898,2]
[313464127,1707361839396,-459.69208989,0.00029,3]
[313464129,1707361839405,-183.35515758,0.00029,10]
[313464131,1707361839414,-26255.17240658,0.00029,2]
[313464317,1707361841642,-503.01188397,0.00029,2]
[313464319,1707361841656,-29563.45620518,0.00029,2]
[313464322,1707361841666,-10491.29121025,0.00029,2]
[313464323,1707361841674,-1017.18994145,0.00029,2]
[313464325,1707361841683,-3365.98,0.00029023,2]
[313464327,1707361841692,-3365.98,0.00029023,2]
[313464329,1707361841701,-3365.98,0.00029023,2]
[313464331,1707361841710,-3365.98,0.00029023,2]
[313464333,1707361841719,-3365.98,0.00029023,2]
[313464335,1707361841730,-3365.98,0.00029023,2]
[313464337,1707361841738,-1415.58332449,0.00029023,2]
[313464437,1707361844541,-456.56140011,0.00026428,2]
[313464438,1707361844553,-416.75595341,0.00026428,2]
[313464439,1707361844597,-497.0012531,0.00026428,2]
[313464467,1707362204093,473.13,0.00029,30]
[313464472,1707362773200,4455.06,0.00029,30]
[313464529,1707363032578,-155.12254681,0.00020622,2]
[313464531,1707363032587,-155.12254681,0.00020622,4]
[313464533,1707363032596,-481.56201325,0.00020623,2]
[313464535,1707363032605,-7283.53354215,0.00020625,2]
[313464539,1707363032633,-13675.65345927,0.00020625,2]
[313464541,1707363032642,-1126.93686196,0.00020628,2]
[313464749,1707363038699,-8266.04017493,0.00020628,2]
[313464751,1707363038709,-24900.0,0.0002063,2]
[313464752,1707363038718,-194.5552774,0.00020907,2]
[313464753,1707363038727,-166.666666,0.00021918,2]
[313464755,1707363038737,-295.14403984,0.00022,4]
[313464756,1707363038746,-166.666666,0.00022431,2]
[313464757,1707363038755,-168.780552,0.00022537,2]
[313464758,1707363038764,-200.0,0.00022688,7]
[313464759,1707363038773,-166.666666,0.00022944,2]
[313464760,1707363038783,-1263.33437611,0.00023,2]
[313464761,1707363038792,-9969.58754808,0.00023,2]
[313464762,1707363038801,-166.666666,0.00023456,2]
[313464763,1707363038810,-166.666666,0.00023969,2]
[313464764,1707363038820,-166.666666,0.00024482,2]
[313464765,1707363038829,-224.1021256,0.00024658,2]
[313464766,1707363038838,-200.0,0.00024658,2]
[313464767,1707363038848,-280.0,0.00024957,7]
[313464768,1707363038857,-6332.69,0.0002623,3]
[313464769,1707363038866,-7599.22,0.0002624,3]
[313464770,1707363038875,-4867.14,0.0002625,3]
[313464771,1707363038885,-1000.0,0.0002628,3]
[313464772,1707363038895,-166.41966501,0.0002628,2]
[313464773,1707363038904,-180.92946771,0.00026327,2]
[313464775,1707363038913,-180.92946771,0.00026381,2]
[313464776,1707363038923,-454.79243383,0.00026398,2]
[313464777,1707363038933,-867.96987408,0.000264,2]
[313464778,1707363038942,-20174.40262469,0.00026424,2]
[313464779,1707363038952,-66832.46334846,0.00026426,2]
[313464780,1707363038961,-502.87737302,0.00026427,2]
[313464781,1707363038970,-3629.68139338,0.00026428,2]
[313464782,1707363038979,-4499.85603163,0.00026428,7]
[313464783,1707363038989,-500.0,0.00026461,2]
[313464784,1707363038998,-894.03956665,0.00026461,2]
[313464785,1707363039006,-154.73770772,0.00026461,2]
[313464786,1707363039015,-894.03956665,0.00026461,2]
[313464787,1707363039024,-894.03956665,0.00026461,2]
[313464788,1707363039034,-500.0,0.00026461,2]
[313464789,1707363039043,-894.03956665,0.00026461,2]
[313464790,1707363039053,-894.03956665,0.00026461,2]
[313464791,1707363039062,-500.0,0.00026461,2]
[313464792,1707363039071,-894.03956665,0.00026461,2]
[313464793,1707363039081,-894.03956665,0.00026461,2]
[313464794,1707363039090,-493.72097149,0.00026461,2]
[313464795,1707363039099,-894.03956665,0.00026461,2]
[313464796,1707363039108,-894.03956665,0.00026461,2]
[313464797,1707363039118,-894.03956665,0.00026461,2]
[313464798,1707363039127,-894.03956665,0.00026461,2]
[313464799,1707363039136,-894.03956665,0.00026461,2]
[313464800,1707363039145,-894.03956665,0.00026461,2]
[313464801,1707363039154,-894.03956665,0.00026461,2]
[313464802,1707363039163,-894.03956665,0.00026461,2]
[313464803,1707363039173,-894.03956665,0.00026461,2]
[313464804,1707363039182,-894.03956665,0.00026461,2]
[313464805,1707363039191,-894.03956665,0.00026461,2]
[313464806,1707363039200,-894.03956665,0.00026461,2]
[313464807,1707363039210,-894.03956665,0.00026461,2]
[313464808,1707363039219,-894.03956665,0.00026461,2]
[313464809,1707363039228,-894.03956665,0.00026461,2]
[313464810,1707363039237,-894.03956665,0.00026461,2]
[313464811,1707363039247,-894.03956665,0.00026461,2]
[313464812,1707363039256,-894.03956665,0.00026461,2]
[313464813,1707363039264,-894.03956665,0.00026461,2]
[313464814,1707363039273,-894.03956665,0.00026461,2]
[313464815,1707363039283,-894.03956665,0.00026461,2]
[313464816,1707363039292,-894.03956665,0.00026461,2]
[313464817,1707363039301,-894.03956665,0.00026461,2]
[313464818,1707363039310,-894.03956665,0.00026461,2]
[313464819,1707363039322,-894.03956665,0.00026461,2]
[313464820,1707363039331,-894.03956665,0.00026461,2]
[313464821,1707363039341,-894.03956665,0.00026461,2]
[313464822,1707363039350,-894.03956665,0.00026461,2]
[313464823,1707363039360,-894.03956665,0.00026461,2]
[313464824,1707363039370,-894.03956665,0.00026461,2]
[313464825,1707363039380,-894.03956665,0.00026461,2]
[313464826,1707363039389,-894.03956665,0.00026461,2]
[313464827,1707363039399,-894.03956665,0.00026461,2]
[313464828,1707363039412,-894.03956665,0.00026461,2]
[313464829,1707363039422,-894.03956665,0.00026461,2]
[313464830,1707363039431,-894.03956665,0.00026461,2]
[313464831,1707363039441,-894.03956665,0.00026461,2]
[313464832,1707363039450,-894.03956665,0.00026461,2]
[313464833,1707363039459,-894.03956665,0.00026461,2]
[313464834,1707363039468,-894.03956665,0.00026461,2]
[313464835,1707363039478,-894.03956665,0.00026461,2]
[313464836,1707363039487,-894.03956665,0.00026461,2]
[313464837,1707363039497,-894.03956665,0.00026461,2]
[313464838,1707363039506,-894.03956665,0.00026461,2]
[313464839,1707363039515,-894.03956665,0.00026461,2]
[313464840,1707363039524,-894.03956665,0.00026461,2]
[313464841,1707363039533,-894.03956665,0.00026461,2]
[313464842,1707363039542,-894.03956665,0.00026461,2]
[313464843,1707363039551,-894.03956665,0.00026461,2]
[313464844,1707363039560,-894.03956665,0.00026461,2]
[313464845,1707363039569,-894.03956665,0.00026461,2]
[313464846,1707363039577,-894.03956665,0.00026461,2]
[313464847,1707363039587,-894.03956665,0.00026461,2]
[313464848,1707363039596,-894.03956665,0.00026461,2]
[313464849,1707363039605,-894.03956665,0.00026461,2]
[313464850,1707363039614,-894.03956665,0.00026461,2]
[313464851,1707363039623,-894.03956665,0.00026461,2]
[313464852,1707363039632,-894.03956665,0.00026461,2]
[313464853,1707363039641,-894.03956665,0.00026461,2]
[313464854,1707363039650,-894.03956665,0.00026461,2]
[313464855,1707363039659,-894.03956665,0.00026461,2]
[313464856,1707363039668,-894.03956665,0.00026461,2]
[313464857,1707363039678,-894.03956665,0.00026461,2]
[313464858,1707363039687,-894.03956665,0.00026461,2]
[313464859,1707363039696,-30840.4201033,0.00026463,2]
[313464860,1707363039705,-39854.85709307,0.00026463,2]
[313464861,1707363039714,-5000.0,0.00026463,2]
[313464862,1707363039722,-15925.10409624,0.00026463,2]
[313464863,1707363039732,-5000.0,0.00026468,2]
[313464864,1707363039742,-50000.0,0.00026468,2]
[313464865,1707363039751,-50000.0,0.00026468,2]
[313464866,1707363039760,-81408.28702569,0.00026468,2]
[313464867,1707363039770,-5000.0,0.00026481,2]
[313464868,1707363039779,-2477.54796572,0.000269,2]
[313464869,1707363039790,-1382.75585323,0.00027,2]
[313464870,1707363039799,-136.93164049,0.00027322,2]
[313464907,1707363043284,-14.06835951,0.00027322,2]
[313464909,1707363043293,-156.02364156,0.00027397,2]
[313464911,1707363043303,-991.3729726,0.00027397,2]
[313464912,1707363043312,-391.0,0.00027453,15]
[313464914,1707363043323,-514.08551986,0.000275,2]
[313464916,1707363043334,-600.0,0.000275,2]
[313464919,1707363043342,-153.0,0.00027671,2]
[313464920,1707363043351,-632.3984937,0.0002772,2]
[313464923,1707363043360,-1199.464017,0.000279,2]
[313464925,1707363043369,-253.61533602,0.00028,2]
[313464927,1707363043381,-1462.89610835,0.00028,2]
[313464929,1707363043390,-770.90389165,0.00028,2]
[313464945,1707363043914,-500.0,0.00026461,2]
[313464946,1707363043923,-500.0,0.00026461,2]
[313464947,1707363043933,-500.0,0.00026461,2]
[313464948,1707363043943,-500.0,0.00026461,2]
[313464949,1707363043952,-500.0,0.00026461,2]
[313464950,1707363043961,-137.88992488,0.00026461,2]
[313464960,1707363046752,-362.11007512,0.00026461,2]
[313464961,1707363046763,-500.0,0.00026461,2]
[313464962,1707363046772,-500.0,0.00026461,2]
[313464963,1707363046782,-222.62496508,0.00026461,2]
[313465064,1707364211431,151.0,0.00029,30]
[313465119,1707364231851,-735.82,0.00020522,2]
[313465142,1707364231972,151.0,0.00029,30]
[313465158,1707364238920,-261.08056277,0.00020521,2]
[313465159,1707364238929,-862.44493246,0.00020522,2]
[313465160,1707364239032,-23301.73506754,0.00020522,2]
[313465161,1707364239042,-168.780552,0.0002111,2]
[313465162,1707364239051,-481.56201325,0.00021332,2]
[313465163,1707364239060,-155.11323266,0.00021332,4]
[313465164,1707364239069,-155.11323266,0.00021333,2]
[313465165,1707364239079,-155.11323266,0.00021334,2]
[313465166,1707364239089,-168.7805538,0.00021365,2]
[313465167,1707364239099,-9392.97703689,0.00021693,2]
[313465168,1707364239108,-166.666666,0.00021918,2]
[313465169,1707364239117,-294.41528797,0.00022,4]
[313465170,1707364239127,-326.48350937,0.00022,2]
[313465171,1707364239136,-166.666666,0.00022431,2]
[313465172,1707364239145,-166.666666,0.00022944,2]
[313465173,1707364239154,-9969.58754808,0.00023,2]
[313465174,1707364239164,-1263.33437611,0.00023,2]
[313465175,1707364239174,-502.87737302,0.00023293,2]
[313465176,1707364239183,-168.926651,0.00023297,2]
[313465177,1707364239192,-180.92946771,0.00023356,2]
[313465178,1707364239201,-9138.41,0.00023419,3]
[313465179,1707364239210,-7615.35,0.00023419,3]
[313465180,1707364239220,-66832.46334846,0.00023429,2]
[313465181,1707364239229,-166.666666,0.00023456,2]
[313465182,1707364239238,-200.0,0.00023862,7]
[313465183,1707364239248,-166.666666,0.00023969,2]
[313465184,1707364239257,-2616.97063841,0.00024368,2]
[313465185,1707364239266,-166.666666,0.00024482,2]
[313465186,1707364239275,-324.1021256,0.00024658,2]
[313465187,1707364239285,-200.0,0.00024658,2]
[313465188,1707364239294,-1004.15949438,0.00025,2]
[313465189,1707364239304,-996.21574486,0.00025198,2]
[313465190,1707364239313,-280.0,0.00026248,15]
[313465192,1707364239322,-363.81520054,0.00026295,2]
[313465193,1707364239332,-500.0,0.00026359,2]
[313465194,1707364239341,-154.73770772,0.00026359,2]
[313465195,1707364239350,-1120.060077,0.00026359,2]
[313465196,1707364239359,-1120.060077,0.00026359,2]
[313465197,1707364239368,-500.0,0.00026359,2]
[313465198,1707364239378,-1120.060077,0.00026359,2]
[313465199,1707364239387,-1120.060077,0.00026359,2]
[313465200,1707364239396,-500.0,0.00026359,2]
[313465201,1707364239405,-1120.060077,0.00026359,2]
[313465202,1707364239415,-1120.060077,0.00026359,2]
[313465203,1707364239424,-493.72097149,0.00026359,2]
[313465204,1707364239433,-1120.060077,0.00026359,2]
[313465205,1707364239443,-1120.060077,0.00026359,2]
[313465206,1707364239452,-1120.060077,0.00026359,2]
[313465207,1707364239461,-1120.060077,0.00026359,2]
[313465208,1707364239471,-200.9447637,0.00026359,2]
[313465209,1707364239483,-919.1153133,0.00026359,2]
[313465210,1707364239492,-1120.060077,0.00026359,2]
[313465211,1707364239501,-1120.060077,0.00026359,2]
[313465212,1707364239510,-1120.060077,0.00026359,2]
[313465213,1707364239519,-1120.060077,0.00026359,2]
[313465214,1707364239528,-1120.060077,0.00026359,2]
[313465215,1707364239536,-1120.060077,0.00026359,2]
[313465216,1707364239545,-1120.060077,0.00026359,2]
[313465217,1707364239554,-1120.060077,0.00026359,2]
[313465218,1707364239564,-1120.060077,0.00026359,2]
[313465219,1707364239573,-1120.060077,0.00026359,2]
[313465220,1707364239582,-1120.060077,0.00026359,2]
[313465221,1707364239591,-1120.060077,0.00026359,2]
[313465222,1707364239601,-1120.060077,0.00026359,2]
[313465223,1707364239610,-1120.060077,0.00026359,2]
[313465224,1707364239619,-1120.060077,0.00026359,2]
[313465225,1707364239628,-1120.060077,0.00026359,2]
[313465226,1707364239637,-1120.060077,0.00026359,2]
[313465227,1707364239649,-1120.060077,0.00026359,2]
[313465228,1707364239658,-1120.060077,0.00026359,2]
[313465229,1707364239667,-1120.060077,0.00026359,2]
[313465230,1707364239677,-1120.060077,0.00026359,2]
[313465231,1707364239687,-1120.060077,0.00026359,2]
[313465232,1707364239696,-1120.060077,0.00026359,2]
[313465233,1707364239705,-1120.060077,0.00026359,2]
[313465234,1707364239714,-1120.060077,0.00026359,2]
[313465235,1707364239726,-1120.060077,0.00026359,2]
[313465236,1707364239736,-1120.060077,0.00026359,2]
[313465237,1707364239745,-1120.060077,0.00026359,2]
[313465238,1707364239754,-1120.060077,0.00026359,2]
[313465239,1707364239763,-1120.060077,0.00026359,2]
[313465240,1707364239772,-1120.060077,0.00026359,2]
[313465241,1707364239781,-1120.060077,0.00026359,2]
[313465242,1707364239790,-1120.060077,0.00026359,2]
[313465243,1707364239799,-1120.060077,0.00026359,2]
[313465244,1707364239808,-1120.060077,0.00026359,2]
[313465245,1707364239817,-1120.060077,0.00026359,2]
[313465246,1707364239826,-1120.060077,0.00026359,2]
[313465247,1707364239835,-1120.060077,0.00026359,2]
[313465248,1707364239844,-1120.060077,0.00026359,2]
[313465249,1707364239853,-1120.060077,0.00026359,2]
[313465250,1707364239863,-1120.060077,0.00026359,2]
[313465251,1707364239872,-1120.060077,0.00026359,2]
[313465252,1707364239881,-1120.060077,0.00026359,2]
[313465253,1707364239890,-1120.060077,0.00026359,2]
[313465254,1707364239899,-1120.060077,0.00026359,2]
[313465255,1707364239908,-1120.060077,0.00026359,2]
[313465256,1707364239917,-1120.060077,0.00026359,2]
[313465257,1707364239927,-1120.060077,0.00026359,2]
[313465258,1707364239936,-1120.060077,0.00026359,2]
[313465259,1707364239945,-1120.060077,0.00026359,2]
[313465260,1707364239955,-1120.060077,0.00026359,2]
[313465261,1707364239964,-1120.060077,0.00026359,2]
[313465262,1707364239974,-1120.060077,0.00026359,2]
[313465263,1707364239984,-1120.060077,0.00026359,2]
[313465264,1707364239993,-1120.060077,0.00026359,2]
[313465265,1707364240003,-1120.060077,0.00026359,2]
[313465266,1707364240012,-1120.060077,0.00026359,2]
[313465267,1707364240022,-1120.060077,0.00026359,2]
[313465268,1707364240031,-1120.060077,0.00026359,2]
[313465269,1707364240041,-1120.060077,0.00026359,2]
[313465270,1707364240050,-1120.060077,0.00026359,2]
[313465271,1707364240061,-20174.40262469,0.0002636,2]
[313465272,1707364240071,-88957.05990338,0.00026362,2]
[313465273,1707364240082,-180.92946771,0.00026406,2]
[313465274,1707364240092,-3253.88603195,0.00026461,2]
[313465275,1707364240101,-2592.82331226,0.00026461,7]
[313465276,1707364240110,-155.12254681,0.00026461,2]
[313465277,1707364240119,-50000.0,0.00026506,2]
[313465278,1707364240129,-50000.0,0.00026506,2]
[313465279,1707364240138,-50000.0,0.00026506,2]
[313465280,1707364240147,-75177.31326268,0.00026506,2]
[313465281,1707364240157,-7895.30381732,0.00026506,2]
[313465282,1707364240166,-7058.14581398,0.00026506,2]
[313465283,1707364240175,-355.0,0.000268,2]
[313465284,1707364240184,-1382.75585323,0.00027,2]
[313465285,1707364240194,-315.1407098,0.0002726,2]
[313465286,1707364240203,-151.0,0.00027358,2]
[313465287,1707364240213,-199.9537868,0.00027456,2]
[313465288,1707364240223,-326.1507413,0.00027534,2]
[313465289,1707364240232,-153.0,0.00027534,2]
[313465290,1707364240241,-153.0,0.00027534,2]
[313465291,1707364240251,-153.0,0.00027534,2]
[313465292,1707364240260,-153.0,0.00027534,2]
[313465293,1707364240268,-159.2387723,0.00027671,2]
[313465294,1707364240278,-199.9537868,0.00027671,2]
[313465295,1707364240287,-307.4096268,0.00027671,2]
[313465296,1707364240296,-159.5508738,0.00027671,2]
[313465297,1707364240306,-173.4520642,0.00027671,2]
[313465298,1707364240315,-306.9182303,0.00027671,2]
[313465299,1707364240324,-156.0134106,0.00027671,2]
[313465300,1707364240333,-199.9537868,0.00027671,2]
[313465301,1707364240342,-199.9537868,0.00027671,2]
[313465302,1707364240351,-199.9537868,0.00027671,2]
[313465303,1707364240360,-199.9537868,0.00027671,2]
[313465304,1707364240369,-199.9537868,0.00027671,2]
[313465305,1707364240379,-199.9537868,0.00027671,2]
[313465306,1707364240388,-192.63669177,0.00027999,2]
[313465307,1707364240397,-3598.87769956,0.00028,2]
[313465308,1707364240406,-46111.02664638,0.00028,2]
[313465309,1707364240415,-1129.85208544,0.00028,20]
[313465310,1707364240424,-1716.51144437,0.00028,2]
[313465311,1707364240433,-295.11534832,0.00028,2]
[313465312,1707364240446,-204.88465168,0.00028,2]
[313465313,1707364240455,-151.0,0.0002821,2]
[313465314,1707364240464,-115.0585352,0.0002828,2]
[313465316,1707364241072,-45.45233373,0.0002828,2]
[313465317,1707364241081,-221.99202262,0.00028283,4]
[313465318,1707364241091,-153.0,0.00028356,2]
[313465319,1707364241101,-153.0,0.00028493,2]
[313465320,1707364241110,-401.549583,0.00028493,2]
[313465321,1707364241119,-153.0,0.00028493,2]
[313465322,1707364241129,-153.0,0.00028493,2]
[313465323,1707364241138,-306.0,0.00028493,2]
[313465324,1707364241148,-153.0,0.00028493,2]
[313465325,1707364241157,-153.0,0.00028493,2]
[313465326,1707364241166,-199.9537868,0.00028493,2]
[313465327,1707364241176,-199.9537868,0.00028493,2]
[313465328,1707364241185,-153.0,0.00028493,2]
[313465329,1707364241195,-153.0,0.00028493,2]
[313465330,1707364241204,-179.18709253,0.00028493,2]
[313465348,1707364242957,197.0,0.00029,30]
[313465368,1707364244096,-500.0,0.00026359,2]
[313465370,1707364244106,-500.0,0.00026359,2]
[313465372,1707364244115,-500.0,0.00026359,2]
[313465374,1707364244124,-500.0,0.00026359,2]
[313465376,1707364244133,-500.0,0.00026359,2]
[313465378,1707364244143,-500.0,0.00026359,2]
[313465380,1707364244152,-500.0,0.00026359,2]
[313465381,1707364244161,-500.0,0.00026359,2]
[313465384,1707364244171,-500.0,0.00026359,2]
[313465386,1707364244180,-500.0,0.00026359,2]
[313465388,1707364244189,-500.0,0.00026359,2]
[313465390,1707364244199,-500.0,0.00026359,2]
[313465391,1707364244208,-500.0,0.00026359,2]
[313465393,1707364244217,-719.46505667,0.00026406,2]
[313465395,1707364244226,-20.76669427,0.00028493,2]
[313465397,1707364244235,-153.0,0.00028493,2]
[313465399,1707364244244,-153.0,0.00028493,2]
[313465401,1707364244252,-199.9537868,0.00028493,2]
[313465403,1707364244262,-153.0,0.00028493,2]
[313465405,1707364244271,-199.9537868,0.00028493,2]
[313465407,1707364244280,-199.9537868,0.00028493,2]
[313465409,1707364244289,-391.0,0.00028873,15]
[313465411,1707364244298,-813.66837195,0.00028917,2]
[313465539,1707364245860,-500.0,0.00026359,2]
[313465540,1707364245869,-500.0,0.00026359,2]
[313465541,1707364245879,-500.0,0.00026359,2]
[313465542,1707364245888,-243.91680008,0.00026359,2]
[313465543,1707364245917,-256.08319992,0.00026359,2]
[313465544,1707364245926,-500.0,0.00026359,2]
[313465545,1707364245935,-500.0,0.00026359,2]
[313465546,1707364245944,-500.0,0.00026359,2]
[313465547,1707364245953,-500.0,0.00026359,2]
[313465548,1707364245962,-500.0,0.00026359,2]
[313465549,1707364245971,-500.0,0.00026359,2]
[313465550,1707364245981,-500.0,0.00026359,2]
[313465552,1707364245990,-500.0,0.00026359,2]
[313465554,1707364245999,-500.0,0.00026359,2]
[313465555,1707364246008,-500.0,0.00026359,2]
[313465556,1707364246018,-500.0,0.00026359,2]
[313465557,1707364246027,-500.0,0.00026359,2]
[313465558,1707364246036,-500.0,0.00026359,2]
[313465559,1707364246046,-500.0,0.00026359,2]
[313465560,1707364246055,-500.0,0.00026359,2]
[313465561,1707364246064,-500.0,0.00026359,2]
[313465562,1707364246073,-161.08138629,0.00026359,2]
[313465563,1707364246082,-500.0,0.00026359,2]
[313465564,1707364246092,-500.0,0.00026359,2]
[313465565,1707364246101,-500.0,0.00026359,2]
[313465566,1707364246110,-500.0,0.00026359,2]
[313465568,1707364246119,-360.86551863,0.00026359,2]
[313465636,1707365438287,-155.10081553,0.00018617,3]
[313465638,1707365438297,-155.10081553,0.00018618,2]
[313465639,1707365438306,-9392.97703689,0.00018621,2]
[313465641,1707365438315,-24900.0,0.00018622,2]
[313465642,1707365438325,-621.2455937,0.0001897,2]
[313465643,1707365438334,-194.5552774,0.00019257,2]